[Event "*** Titled Tuesday Blitz"]
[Site "Chess.com"]
[Date "2021.03.30"]
[Round "9"]
[White "ljuks68"]
[Black "aunqa"]
[Result "0-1"]
[WhiteElo "2466"]
[BlackElo "2365"]
[TimeControl "180+1"]
[EndTime "11:43:36 PDT"]
[Termination "aunqa won by resignation"]

1. e4 {[%clk 0:03:00.9]} 1... c5 {[%clk 0:02:58.6]} 2. Nf3 {[%clk 0:03:00.8]}
2... e6 {[%clk 0:02:58.5]} 3. d4 {[%clk 0:03:01.2]} 3... cxd4 {[%clk 0:02:58.2]}
4. Nxd4 {[%clk 0:03:01.7]} 4... a6 {[%clk 0:02:58.4]} 5. Bd3 {[%clk 0:03:00.7]}
5... Bc5 {[%clk 0:02:56.1]} 6. Nb3 {[%clk 0:02:59.8]} 6... Be7 {[%clk
0:02:56.1]} 7. Qg4 {[%clk 0:02:56.7]} 7... Nf6 {[%clk 0:02:54]} 8. Qxg7 {[%clk
0:02:53.4]} 8... Rg8 {[%clk 0:02:53.3]} 9. Qh6 {[%clk 0:02:52.7]} 9... Rxg2
{[%clk 0:02:52.9]} 10. Qh3 {[%clk 0:02:44.9]} 10... Rg7 {[%clk 0:02:28.8]} 11.
Nc3 {[%clk 0:02:40.8]} 11... d6 {[%clk 0:02:28.2]} 12. Bh6 {[%clk 0:02:34.2]}
12... Rg8 {[%clk 0:02:25.8]} 13. e5 {[%clk 0:02:28.7]} 13... dxe5 {[%clk
0:02:24.2]} 14. O-O-O {[%clk 0:02:28.3]} 14... Qc7 {[%clk 0:02:22.7]} 15. Rhg1
{[%clk 0:02:23.1]} 15... Rxg1 {[%clk 0:02:21.6]} 16. Rxg1 {[%clk 0:02:22]} 16...
Nc6 {[%clk 0:02:20.5]} 17. Bg5 {[%clk 0:02:17.7]} 17... Nd5 {[%clk 0:02:16.2]}
18. Bxh7 {[%clk 0:02:05.2]} 18... Bd7 {[%clk 0:02:12.3]} 19. Nxd5 {[%clk
0:01:44.7]} 19... exd5 {[%clk 0:02:10.2]} 20. Qh4 {[%clk 0:01:44.9]} 20... Be6
{[%clk 0:01:55.7]} 21. Bxe7 {[%clk 0:01:33.8]} 21... Nxe7 {[%clk 0:01:53.7]} 22.
Bf5 {[%clk 0:01:31.3]} 22... Bxf5 {[%clk 0:01:46.3]} 0-1

[Event "*** Titled Tuesday Blitz"]
[Site "Chess.com"]
[Date "2021.03.30"]
[Round "9"]
[White "Kozok"]
[Black "Loy_Konstantin"]
[Result "0-1"]
[WhiteElo "2486"]
[BlackElo "2350"]
[TimeControl "180+1"]
[EndTime "11:43:49 PDT"]
[Termination "Loy_Konstantin won by resignation"]

1. e4 {[%clk 0:03:00.9]} 1... c5 {[%clk 0:02:58.9]} 2. Nf3 {[%clk 0:03:00.7]}
2... d6 {[%clk 0:02:58.8]} 3. d4 {[%clk 0:03:00.6]} 3... cxd4 {[%clk 0:02:59.7]}
4. Nxd4 {[%clk 0:03:01.4]} 4... Nf6 {[%clk 0:03:00.2]} 5. Nc3 {[%clk 0:03:02.1]}
5... g6 {[%clk 0:03:00.7]} 6. Be3 {[%clk 0:02:57.8]} 6... Bg7 {[%clk 0:03:01.1]}
7. f3 {[%clk 0:02:57.5]} 7... O-O {[%clk 0:03:01.5]} 8. Qd2 {[%clk 0:02:57.7]}
8... Nc6 {[%clk 0:03:02]} 9. g4 {[%clk 0:02:57.8]} 9... Bd7 {[%clk 0:03:01.7]}
10. h4 {[%clk 0:02:57.7]} 10... Rc8 {[%clk 0:03:02.2]} 11. h5 {[%clk 0:02:56.1]}
11... Ne5 {[%clk 0:03:02.6]} 12. O-O-O {[%clk 0:02:24.9]} 12... Qa5 {[%clk
0:02:59.3]} 13. Nb3 {[%clk 0:02:22.6]} 13... Qc7 {[%clk 0:02:58.6]} 14. Qh2
{[%clk 0:02:18.8]} 14... Nxf3 {[%clk 0:02:56.1]} 15. Qg2 {[%clk 0:02:13.2]}
15... Bxg4 {[%clk 0:02:41.3]} 16. hxg6 {[%clk 0:02:06.9]} 16... fxg6 {[%clk
0:02:38.3]} 17. Be2 {[%clk 0:02:03.5]} 17... Ne5 {[%clk 0:02:35.8]} 18. Bxg4
{[%clk 0:01:55.9]} 18... Nexg4 {[%clk 0:02:29.5]} 19. Bd4 {[%clk 0:01:55.5]}
19... h5 {[%clk 0:01:52.5]} 20. Kb1 {[%clk 0:01:33.3]} 20... a6 {[%clk
0:01:47.9]} 21. Nd5 {[%clk 0:01:28.3]} 21... Nxd5 {[%clk 0:01:45]} 22. Bxg7
{[%clk 0:01:29.2]} 22... Kxg7 {[%clk 0:01:44.9]} 23. Rxd5 {[%clk 0:01:29.4]}
23... Rf2 {[%clk 0:01:36]} 0-1

[Event "*** Titled Tuesday Blitz"]
[Site "Chess.com"]
[Date "2021.03.30"]
[Round "9"]
[White "JiiHart"]
[Black "chessprincesa1"]
[Result "1-0"]
[WhiteElo "2064"]
[BlackElo "2219"]
[TimeControl "180+1"]
[EndTime "11:44:15 PDT"]
[Termination "JiiHart won by resignation"]

1. e4 {[%clk 0:03:00.9]} 1... e5 {[%clk 0:02:58.6]} 2. Nf3 {[%clk 0:03:00.2]}
2... Nc6 {[%clk 0:02:57.6]} 3. Bc4 {[%clk 0:03:00.1]} 3... Bc5 {[%clk
0:02:55.1]} 4. c3 {[%clk 0:02:59.9]} 4... d6 {[%clk 0:02:50.8]} 5. d4 {[%clk
0:02:58.4]} 5... exd4 {[%clk 0:02:47.6]} 6. cxd4 {[%clk 0:02:58.3]} 6... Bb4+
{[%clk 0:02:48.1]} 7. Nc3 {[%clk 0:02:58.1]} 7... Nf6 {[%clk 0:02:46.5]} 8. O-O
{[%clk 0:02:56.6]} 8... O-O {[%clk 0:02:46.1]} 9. Bg5 {[%clk 0:02:54.3]} 9... h6
{[%clk 0:02:45]} 10. Bh4 {[%clk 0:02:53.7]} 10... Bg4 {[%clk 0:02:43]} 11. Kh1
{[%clk 0:02:21]} 11... g5 {[%clk 0:02:26.5]} 12. Bg3 {[%clk 0:02:18.9]} 12...
Nh5 {[%clk 0:02:21.9]} 13. Be2 {[%clk 0:02:11.3]} 13... Nxg3+ {[%clk 0:02:12.7]}
14. fxg3 {[%clk 0:02:07.5]} 14... Qe7 {[%clk 0:02:11.4]} 15. Nd5 {[%clk
0:01:58]} 15... Qd8 {[%clk 0:02:04.4]} 16. Nxb4 {[%clk 0:01:35.2]} 16... Nxb4
{[%clk 0:01:43]} 17. d5 {[%clk 0:01:26.7]} 17... Qe7 {[%clk 0:01:36.4]} 18. Nd4
{[%clk 0:01:12.7]} 18... Bxe2 {[%clk 0:01:33.8]} 19. Qxe2 {[%clk 0:01:10.3]}
19... Rae8 {[%clk 0:01:22.5]} 20. Rae1 {[%clk 0:01:05.4]} 20... Nxd5 {[%clk
0:01:18.6]} 21. exd5 {[%clk 0:01:04]} 1-0

[Event "*** Titled Tuesday Blitz"]
[Site "Chess.com"]
[Date "2021.03.30"]
[Round "9"]
[White "bazar-wokzal"]
[Black "McCarthyStone"]
[Result "1-0"]
[WhiteElo "2567"]
[BlackElo "2415"]
[TimeControl "180+1"]
[EndTime "11:44:17 PDT"]
[Termination "bazar-wokzal won by resignation"]

1. e4 {[%clk 0:03:00.9]} 1... d6 {[%clk 0:02:59.1]} 2. f4 {[%clk 0:03:00.6]}
2... Nf6 {[%clk 0:03:00]} 3. Nc3 {[%clk 0:03:00.4]} 3... c6 {[%clk 0:02:50.4]}
4. Nf3 {[%clk 0:02:59.6]} 4... g6 {[%clk 0:02:50.8]} 5. d4 {[%clk 0:02:56.4]}
5... Bg7 {[%clk 0:02:51.3]} 6. Be3 {[%clk 0:02:55]} 6... O-O {[%clk 0:02:51.5]}
7. Qd2 {[%clk 0:02:48]} 7... Qa5 {[%clk 0:02:50.8]} 8. h3 {[%clk 0:02:45.8]}
8... b5 {[%clk 0:02:46.3]} 9. Bd3 {[%clk 0:02:41.2]} 9... Bb7 {[%clk 0:02:38]}
10. e5 {[%clk 0:02:36.2]} 10... Nfd7 {[%clk 0:02:36.4]} 11. h4 {[%clk
0:02:25.9]} 11... Nb6 {[%clk 0:02:31.7]} 12. h5 {[%clk 0:02:24.1]} 12... Nc4
{[%clk 0:02:31.5]} 13. Bxc4 {[%clk 0:02:23.4]} 13... bxc4 {[%clk 0:02:32.4]} 14.
hxg6 {[%clk 0:02:23.8]} 14... hxg6 {[%clk 0:02:28.5]} 15. Qf2 {[%clk 0:02:21.2]}
15... Rd8 {[%clk 0:02:15.1]} 16. Qh4 {[%clk 0:02:20.7]} 16... Qb6 {[%clk
0:02:06.5]} 17. O-O-O {[%clk 0:02:18.4]} 17... Nd7 {[%clk 0:01:54.6]} 18. Qxe7
{[%clk 0:02:17.1]} 18... Rab8 {[%clk 0:01:39]} 19. Ng5 {[%clk 0:02:14.1]} 19...
Rf8 {[%clk 0:01:30]} 20. Qxd7 {[%clk 0:02:11.5]} 20... Bc8 {[%clk 0:01:28.6]}
21. Qxd6 {[%clk 0:02:09.5]} 21... Qxb2+ {[%clk 0:01:28.1]} 22. Kd2 {[%clk
0:02:09.9]} 22... Bf5 {[%clk 0:01:28.2]} 23. Rc1 {[%clk 0:02:03.8]} 23... Rfd8
{[%clk 0:01:14.9]} 24. Qxc6 {[%clk 0:02:03.1]} 24... Rb6 {[%clk 0:01:04]} 25.
Qxc4 {[%clk 0:02:01.4]} 25... Rb7 {[%clk 0:00:54.8]} 26. e6 {[%clk 0:01:56.4]}
26... Rc8 {[%clk 0:00:46.7]} 27. Qxc8+ {[%clk 0:01:54.7]} 1-0

[Event "*** Titled Tuesday Blitz"]
[Site "Chess.com"]
[Date "2021.03.30"]
[Round "9"]
[White "Danny_Billiards"]
[Black "ChelsieMonica"]
[Result "1-0"]
[WhiteElo "2578"]
[BlackElo "2405"]
[TimeControl "180+1"]
[EndTime "11:44:18 PDT"]
[Termination "Danny_Billiards won by resignation"]

1. e4 {[%clk 0:03:00.9]} 1... e5 {[%clk 0:02:58.3]} 2. Nf3 {[%clk 0:03:01.2]}
2... Nc6 {[%clk 0:02:57.3]} 3. Bc4 {[%clk 0:03:01]} 3... Nf6 {[%clk 0:02:56.5]}
4. d3 {[%clk 0:02:59.6]} 4... Be7 {[%clk 0:02:56.8]} 5. O-O {[%clk 0:02:58.9]}
5... O-O {[%clk 0:02:57.2]} 6. a4 {[%clk 0:02:57.7]} 6... a6 {[%clk 0:02:57.3]}
7. Re1 {[%clk 0:02:57.3]} 7... h6 {[%clk 0:02:57.8]} 8. Nc3 {[%clk 0:02:56.1]}
8... d6 {[%clk 0:02:57.8]} 9. Nd5 {[%clk 0:02:56.6]} 9... Nxd5 {[%clk
0:02:55.8]} 10. Bxd5 {[%clk 0:02:57.5]} 10... Nb8 {[%clk 0:02:55.4]} 11. c3
{[%clk 0:02:57.5]} 11... Be6 {[%clk 0:02:53.1]} 12. Bxb7 {[%clk 0:02:56.8]}
12... Ra7 {[%clk 0:02:50.9]} 13. Bd5 {[%clk 0:02:55.8]} 13... Bxd5 {[%clk
0:02:51.1]} 14. exd5 {[%clk 0:02:56.7]} 14... Nd7 {[%clk 0:02:51.8]} 15. d4
{[%clk 0:02:56.4]} 15... Bf6 {[%clk 0:02:48.5]} 16. dxe5 {[%clk 0:02:56.8]}
16... Nxe5 {[%clk 0:02:49.4]} 17. Nd4 {[%clk 0:02:57.4]} 17... Rb7 {[%clk
0:02:47.8]} 18. b4 {[%clk 0:02:46.6]} 18... Qd7 {[%clk 0:02:45.1]} 19. f4 {[%clk
0:02:32.1]} 19... Ng6 {[%clk 0:02:42.9]} 20. g3 {[%clk 0:02:24.9]} 20... h5
{[%clk 0:02:38.1]} 21. Qxh5 {[%clk 0:01:58.8]} 21... Bxd4+ {[%clk 0:02:36.3]}
22. cxd4 {[%clk 0:01:59.7]} 22... Rxb4 {[%clk 0:02:36.2]} 23. f5 {[%clk
0:01:59.9]} 23... Nh8 {[%clk 0:02:28.5]} 24. Re4 {[%clk 0:01:28]} 24... g6
{[%clk 0:02:28.1]} 25. Qh6 {[%clk 0:01:28]} 25... f6 {[%clk 0:01:17.3]} 26. Rh4
{[%clk 0:01:25.8]} 26... Qg7 {[%clk 0:01:14.5]} 27. Qxg7+ {[%clk 0:01:25.2]}
27... Kxg7 {[%clk 0:01:12.1]} 28. Bh6+ {[%clk 0:01:26.1]} 1-0

[Event "*** Titled Tuesday Blitz"]
[Site "Chess.com"]
[Date "2021.03.30"]
[Round "9"]
[White "chessdiamant"]
[Black "StockholmMissile"]
[Result "0-1"]
[WhiteElo "2399"]
[BlackElo "2565"]
[TimeControl "180+1"]
[EndTime "11:44:33 PDT"]
[Termination "StockholmMissile won by resignation"]

1. Nf3 {[%clk 0:03:00]} 1... d5 {[%clk 0:02:59.8]} 2. g3 {[%clk 0:02:58.4]} 2...
Nd7 {[%clk 0:02:58.9]} 3. d4 {[%clk 0:02:55.6]} 3... Nb6 {[%clk 0:02:59.1]} 4.
Bg2 {[%clk 0:02:55.3]} 4... Bf5 {[%clk 0:02:59.6]} 5. O-O {[%clk 0:02:55.5]}
5... e6 {[%clk 0:03:00]} 6. b3 {[%clk 0:02:54.2]} 6... Nf6 {[%clk 0:02:56.8]} 7.
Nbd2 {[%clk 0:02:53.3]} 7... h6 {[%clk 0:02:55.2]} 8. Bb2 {[%clk 0:02:51.5]}
8... Be7 {[%clk 0:02:55.2]} 9. c4 {[%clk 0:02:51.4]} 9... O-O {[%clk 0:02:55.5]}
10. Ne5 {[%clk 0:02:47.6]} 10... c6 {[%clk 0:02:53]} 11. f3 {[%clk 0:02:45.3]}
11... Bh7 {[%clk 0:02:52.4]} 12. e4 {[%clk 0:02:43.4]} 12... dxe4 {[%clk
0:02:49.4]} 13. fxe4 {[%clk 0:02:44.3]} 13... Nbd7 {[%clk 0:02:49.8]} 14. Nxd7
{[%clk 0:02:42.6]} 14... Nxd7 {[%clk 0:02:48.4]} 15. e5 {[%clk 0:02:32.1]} 15...
Qc7 {[%clk 0:02:30.2]} 16. Qe2 {[%clk 0:02:27]} 16... Rad8 {[%clk 0:02:27.4]}
17. Rae1 {[%clk 0:02:24.4]} 17... Qa5 {[%clk 0:02:21.7]} 18. a3 {[%clk
0:02:18.2]} 18... Bg6 {[%clk 0:02:10.7]} 19. b4 {[%clk 0:02:17.2]} 19... Qb6
{[%clk 0:02:08.1]} 20. Kh1 {[%clk 0:02:12.9]} 20... a5 {[%clk 0:02:06.4]} 21. c5
{[%clk 0:02:06]} 21... Qa7 {[%clk 0:02:06.3]} 22. b5 {[%clk 0:01:55.5]} 22...
cxb5 {[%clk 0:02:03.6]} 23. Qxb5 {[%clk 0:01:56.4]} 23... Nxc5 {[%clk
0:01:57.5]} 24. dxc5 {[%clk 0:01:46.4]} 24... Rxd2 {[%clk 0:01:55.3]} 25. Bxb7
{[%clk 0:01:39]} 25... Bd3 {[%clk 0:01:47.2]} 26. Qd7 {[%clk 0:01:04.8]} 26...
Be4+ {[%clk 0:01:38]} 27. Rxe4 {[%clk 0:01:04.3]} 27... Rxd7 {[%clk 0:01:38.4]}
28. c6 {[%clk 0:01:04.1]} 28... Rxb7 {[%clk 0:01:38.6]} 29. cxb7 {[%clk
0:00:59]} 29... Qxb7 {[%clk 0:01:39.5]} 0-1

[Event "*** Titled Tuesday Blitz"]
[Site "Chess.com"]
[Date "2021.03.30"]
[Round "9"]
[White "skeyman"]
[Black "AthanasiusLefebvre"]
[Result "1-0"]
[WhiteElo "2227"]
[BlackElo "2030"]
[TimeControl "180+1"]
[EndTime "11:44:37 PDT"]
[Termination "skeyman won by resignation"]

1. Nf3 {[%clk 0:03:00.9]} 1... g6 {[%clk 0:02:58.3]} 2. c4 {[%clk 0:02:55.6]}
2... Bg7 {[%clk 0:02:58.4]} 3. Nc3 {[%clk 0:02:56.5]} 3... d6 {[%clk 0:02:56.5]}
4. b3 {[%clk 0:02:57.4]} 4... e6 {[%clk 0:02:49.8]} 5. Bb2 {[%clk 0:02:58.3]}
5... Ne7 {[%clk 0:02:50]} 6. Qc2 {[%clk 0:02:59.2]} 6... O-O {[%clk 0:02:50.2]}
7. e3 {[%clk 0:02:59.8]} 7... c5 {[%clk 0:02:50.8]} 8. Ne2 {[%clk 0:02:59.8]}
8... e5 {[%clk 0:02:46.9]} 9. Ng3 {[%clk 0:02:59.3]} 9... Nbc6 {[%clk
0:02:47.3]} 10. a3 {[%clk 0:02:57.6]} 10... a6 {[%clk 0:02:46.5]} 11. h4 {[%clk
0:02:57.6]} 11... h5 {[%clk 0:02:43]} 12. Ng5 {[%clk 0:02:51.5]} 12... Rb8
{[%clk 0:02:34.4]} 13. Bd3 {[%clk 0:02:50.5]} 13... f5 {[%clk 0:02:26.3]} 14. f4
{[%clk 0:02:49.4]} 14... e4 {[%clk 0:02:24.8]} 15. Be2 {[%clk 0:02:47.2]} 15...
Qe8 {[%clk 0:02:13.8]} 16. Bxg7 {[%clk 0:02:44.7]} 16... Kxg7 {[%clk 0:02:13.8]}
17. Qc3+ {[%clk 0:02:42.1]} 17... Kh6 {[%clk 0:01:51.7]} 18. O-O {[%clk
0:02:30.7]} 18... b5 {[%clk 0:01:44.1]} 19. cxb5 {[%clk 0:02:28.6]} 19... axb5
{[%clk 0:01:43.5]} 20. d3 {[%clk 0:02:28.6]} 20... exd3 {[%clk 0:01:26.8]} 21.
Bxd3 {[%clk 0:02:28.1]} 21... b4 {[%clk 0:01:27.1]} 22. axb4 {[%clk 0:02:26.3]}
22... Nxb4 {[%clk 0:01:27.2]} 23. Rae1 {[%clk 0:02:24.4]} 23... Ned5 {[%clk
0:01:26.6]} 24. Qd2 {[%clk 0:02:22.9]} 24... Qe7 {[%clk 0:01:05.5]} 25. e4
{[%clk 0:02:22.8]} 25... fxe4 {[%clk 0:00:59.6]} 26. Bxe4 {[%clk 0:02:22.8]}
26... Bb7 {[%clk 0:00:53.4]} 27. Bxd5 {[%clk 0:02:20.8]} 27... Nxd5 {[%clk
0:00:46.9]} 28. Rxe7 {[%clk 0:02:19.4]} 28... Nxe7 {[%clk 0:00:47]} 29. f5
{[%clk 0:02:17.7]} 29... d5 {[%clk 0:00:37.7]} 30. Ne6+ {[%clk 0:02:14.7]} 30...
Kh7 {[%clk 0:00:34.3]} 31. Nxf8+ {[%clk 0:02:13.7]} 31... Rxf8 {[%clk
0:00:34.1]} 32. fxg6+ {[%clk 0:02:13.8]} 32... Nxg6 {[%clk 0:00:32.1]} 33. Rxf8
{[%clk 0:02:13.7]} 33... Nxf8 {[%clk 0:00:32]} 34. Qg5 {[%clk 0:02:13.9]} 34...
Ng6 {[%clk 0:00:30.4]} 35. Nf5 {[%clk 0:02:11.5]} 1-0

[Event "*** Titled Tuesday Blitz"]
[Site "Chess.com"]
[Date "2021.03.30"]
[Round "9"]
[White "mishanick"]
[Black "Cambek64"]
[Result "1-0"]
[WhiteElo "2940"]
[BlackElo "2487"]
[TimeControl "180+1"]
[EndTime "11:44:39 PDT"]
[Termination "mishanick won by resignation"]

1. c4 {[%clk 0:02:56.2]} 1... c6 {[%clk 0:02:57.9]} 2. e4 {[%clk 0:02:54.2]}
2... e5 {[%clk 0:02:56.8]} 3. Nf3 {[%clk 0:02:53.6]} 3... d6 {[%clk 0:02:57]} 4.
Nc3 {[%clk 0:02:54.2]} 4... Nd7 {[%clk 0:02:44.4]} 5. d4 {[%clk 0:02:53.7]} 5...
Ngf6 {[%clk 0:02:44.9]} 6. Be2 {[%clk 0:02:49]} 6... Be7 {[%clk 0:02:45.4]} 7.
O-O {[%clk 0:02:42.4]} 7... O-O {[%clk 0:02:45.9]} 8. Re1 {[%clk 0:02:39.4]}
8... Qc7 {[%clk 0:02:46.4]} 9. h3 {[%clk 0:02:38.1]} 9... Re8 {[%clk 0:02:47]}
10. d5 {[%clk 0:02:38.2]} 10... Nc5 {[%clk 0:02:40.7]} 11. Nd2 {[%clk
0:02:34.2]} 11... a5 {[%clk 0:02:40]} 12. b3 {[%clk 0:02:32.7]} 12... Bd7 {[%clk
0:02:36.6]} 13. Bb2 {[%clk 0:02:32.1]} 13... h6 {[%clk 0:02:16.8]} 14. Rc1
{[%clk 0:02:31.7]} 14... Nh7 {[%clk 0:02:05.1]} 15. Nf1 {[%clk 0:02:28.7]} 15...
Bg5 {[%clk 0:02:04.6]} 16. Rc2 {[%clk 0:02:28.7]} 16... Rf8 {[%clk 0:02:03.1]}
17. Bg4 {[%clk 0:02:26.9]} 17... f5 {[%clk 0:01:57.4]} 18. exf5 {[%clk
0:02:25.2]} 18... Bxf5 {[%clk 0:01:57.6]} 19. Bxf5 {[%clk 0:02:26.1]} 19... Rxf5
{[%clk 0:01:57.4]} 20. Ng3 {[%clk 0:02:25.8]} 20... Rf7 {[%clk 0:01:52.4]} 21.
dxc6 {[%clk 0:02:24]} 21... bxc6 {[%clk 0:01:50.8]} 22. Nge4 {[%clk 0:02:24.6]}
22... Nxe4 {[%clk 0:01:49.7]} 23. Nxe4 {[%clk 0:02:25.5]} 23... Be7 {[%clk
0:01:45.8]} 24. Rd2 {[%clk 0:02:23.9]} 24... Nf6 {[%clk 0:01:44.6]} 25. Nxd6
{[%clk 0:02:22.4]} 25... Bxd6 {[%clk 0:01:43.3]} 26. Rxd6 {[%clk 0:02:23.3]}
26... Nd5 {[%clk 0:01:40.2]} 27. Bxe5 {[%clk 0:02:21.9]} 27... Nf4 {[%clk
0:01:07.5]} 28. Qg4 {[%clk 0:02:12.1]} 28... Raf8 {[%clk 0:00:59]} 29. Rxh6
{[%clk 0:02:05.7]} 29... Nd3 {[%clk 0:00:50.8]} 30. Bxc7 {[%clk 0:02:03.8]}
30... Nxe1 {[%clk 0:00:47.2]} 31. Be5 {[%clk 0:01:59.9]} 31... Nd3 {[%clk
0:00:45.3]} 32. Qg6 {[%clk 0:02:00.2]} 32... Re7 {[%clk 0:00:41.1]} 33. Qh7+
{[%clk 0:01:56.8]} 33... Kf7 {[%clk 0:00:40.5]} 34. Rf6+ {[%clk 0:01:56.8]}
34... Ke8 {[%clk 0:00:40.8]} 35. Rxf8+ {[%clk 0:01:57.3]} 35... Kxf8 {[%clk
0:00:40.5]} 36. Bd6 {[%clk 0:01:58.2]} 1-0

[Event "*** Titled Tuesday Blitz"]
[Site "Chess.com"]
[Date "2021.03.30"]
[Round "9"]
[White "EvgenyT"]
[Black "Hikaru"]
[Result "0-1"]
[WhiteElo "2928"]
[BlackElo "3212"]
[TimeControl "180+1"]
[EndTime "11:44:41 PDT"]
[Termination "Hikaru won by resignation"]

1. c4 {[%clk 0:03:00.9]} 1... e5 {[%clk 0:02:57.8]} 2. g3 {[%clk 0:03:00.5]}
2... Nf6 {[%clk 0:02:57.3]} 3. Bg2 {[%clk 0:03:00.2]} 3... d5 {[%clk 0:02:58]}
4. cxd5 {[%clk 0:02:59.5]} 4... Nxd5 {[%clk 0:02:58.9]} 5. Nc3 {[%clk
0:02:58.6]} 5... Nb6 {[%clk 0:02:59.1]} 6. Nf3 {[%clk 0:02:58.1]} 6... Nc6
{[%clk 0:02:59.7]} 7. Rb1 {[%clk 0:02:54.4]} 7... a5 {[%clk 0:02:34.9]} 8. d3
{[%clk 0:02:52.4]} 8... Be7 {[%clk 0:02:34.3]} 9. Be3 {[%clk 0:02:48.5]} 9...
O-O {[%clk 0:02:33.6]} 10. O-O {[%clk 0:02:47.9]} 10... f5 {[%clk 0:02:27.1]}
11. Rc1 {[%clk 0:02:16.2]} 11... Be6 {[%clk 0:02:22.6]} 12. a3 {[%clk
0:02:15.5]} 12... Bf6 {[%clk 0:02:04.2]} 13. Nd2 {[%clk 0:01:56.8]} 13... Rb8
{[%clk 0:01:39.8]} 14. Bxb6 {[%clk 0:01:46.4]} 14... cxb6 {[%clk 0:01:40.7]} 15.
Qa4 {[%clk 0:01:46.8]} 15... Rc8 {[%clk 0:01:30.6]} 16. Nc4 {[%clk 0:01:31.3]}
16... Nd4 {[%clk 0:01:27.6]} 17. Qd1 {[%clk 0:01:09.2]} 17... b5 {[%clk
0:01:13.5]} 0-1

[Event "*** Titled Tuesday Blitz"]
[Site "Chess.com"]
[Date "2021.03.30"]
[Round "9"]
[White "BlackWidow515"]
[Black "thechesscorner64"]
[Result "1-0"]
[WhiteElo "2198"]
[BlackElo "2326"]
[TimeControl "180+1"]
[EndTime "11:44:41 PDT"]
[Termination "BlackWidow515 won by resignation"]

1. d4 {[%clk 0:03:00]} 1... Nf6 {[%clk 0:02:58.3]} 2. Nf3 {[%clk 0:03:00.4]}
2... e6 {[%clk 0:02:56.3]} 3. g3 {[%clk 0:03:00.8]} 3... c5 {[%clk 0:02:53.6]}
4. Bg2 {[%clk 0:03:01.1]} 4... d5 {[%clk 0:02:52.5]} 5. O-O {[%clk 0:03:01.1]}
5... Nc6 {[%clk 0:02:52]} 6. b3 {[%clk 0:03:01.6]} 6... cxd4 {[%clk 0:02:41.7]}
7. Nxd4 {[%clk 0:03:01.1]} 7... Bc5 {[%clk 0:02:42.3]} 8. Nxc6 {[%clk
0:03:00.6]} 8... bxc6 {[%clk 0:02:43.2]} 9. Bb2 {[%clk 0:03:00.8]} 9... O-O
{[%clk 0:02:43.6]} 10. Nd2 {[%clk 0:03:01.4]} 10... Re8 {[%clk 0:02:39.8]} 11.
c4 {[%clk 0:03:01.7]} 11... Ba6 {[%clk 0:02:31.2]} 12. Rc1 {[%clk 0:03:01.1]}
12... Rc8 {[%clk 0:02:30.1]} 13. Re1 {[%clk 0:02:55]} 13... e5 {[%clk
0:02:27.4]} 14. Qc2 {[%clk 0:02:53.2]} 14... d4 {[%clk 0:02:22.1]} 15. Ne4
{[%clk 0:02:50.9]} 15... Nxe4 {[%clk 0:02:20.1]} 16. Bxe4 {[%clk 0:02:51.1]}
16... g6 {[%clk 0:02:20]} 17. e3 {[%clk 0:02:48.7]} 17... f5 {[%clk 0:02:15.1]}
18. Bg2 {[%clk 0:02:48.2]} 18... d3 {[%clk 0:01:35.4]} 19. Qc3 {[%clk
0:02:47.2]} 19... d2 {[%clk 0:01:30.1]} 20. Red1 {[%clk 0:02:45.1]} 20... dxc1=Q
{[%clk 0:01:30.3]} 21. Qxc1 {[%clk 0:02:45.3]} 21... Qe7 {[%clk 0:01:22.9]} 22.
Qc3 {[%clk 0:02:44]} 22... Rcd8 {[%clk 0:01:16.8]} 23. Rxd8 {[%clk 0:02:42.4]}
23... Rxd8 {[%clk 0:01:14.2]} 24. Bxc6 {[%clk 0:02:42.6]} 24... Rd1+ {[%clk
0:01:02.4]} 25. Kg2 {[%clk 0:02:41.8]} 25... Bb7 {[%clk 0:01:03]} 26. Bxb7
{[%clk 0:02:38.3]} 26... Qxb7+ {[%clk 0:01:03.9]} 27. Kh3 {[%clk 0:02:38.3]}
27... Rg1 {[%clk 0:00:39.5]} 28. Qxe5 {[%clk 0:02:26.9]} 28... Qg2+ {[%clk
0:00:37.3]} 29. Kh4 {[%clk 0:02:27.1]} 29... Qxh2+ {[%clk 0:00:37.3]} 30. Kg5
{[%clk 0:02:27.5]} 30... Qh5+ {[%clk 0:00:26.1]} 31. Kf6 {[%clk 0:02:18.7]}
31... Bf8 {[%clk 0:00:15.2]} 32. Qe6+ {[%clk 0:02:16.4]} 32... Kh8 {[%clk
0:00:15.3]} 33. Kf7+ {[%clk 0:02:16.7]} 1-0

[Event "*** Titled Tuesday Blitz"]
[Site "Chess.com"]
[Date "2021.03.30"]
[Round "9"]
[White "dhaessel"]
[Black "Romadk"]
[Result "0-1"]
[WhiteElo "2039"]
[BlackElo "2311"]
[TimeControl "180+1"]
[EndTime "11:44:51 PDT"]
[Termination "Romadk won by checkmate"]

1. d4 {[%clk 0:03:00.9]} 1... Nf6 {[%clk 0:02:47.8]} 2. c4 {[%clk 0:03:00.3]}
2... e6 {[%clk 0:02:47.4]} 3. Nc3 {[%clk 0:03:00]} 3... Bb4 {[%clk 0:02:47.1]}
4. e3 {[%clk 0:03:00.5]} 4... O-O {[%clk 0:02:46.6]} 5. Bd3 {[%clk 0:03:01.1]}
5... d5 {[%clk 0:02:45.6]} 6. cxd5 {[%clk 0:03:00.5]} 6... exd5 {[%clk
0:02:44.6]} 7. Ne2 {[%clk 0:03:01.1]} 7... Bd6 {[%clk 0:02:42.9]} 8. O-O {[%clk
0:02:50.6]} 8... Bxh2+ {[%clk 0:02:38.6]} 9. Kxh2 {[%clk 0:02:49.3]} 9... Ng4+
{[%clk 0:02:38.7]} 10. Kg3 {[%clk 0:02:31.3]} 10... h5 {[%clk 0:02:18.7]} 11.
Rh1 {[%clk 0:02:19.3]} 11... Qd6+ {[%clk 0:01:50.3]} 12. f4 {[%clk 0:02:17]}
12... g6 {[%clk 0:01:49.9]} 13. Nb5 {[%clk 0:01:38.8]} 13... Qe7 {[%clk
0:01:48.5]} 14. b3 {[%clk 0:01:28.9]} 14... Nxe3 {[%clk 0:01:37.3]} 15. Bxe3
{[%clk 0:01:27.7]} 15... Qxe3+ {[%clk 0:01:38.2]} 16. Kh2 {[%clk 0:01:26.3]}
16... Na6 {[%clk 0:01:33.1]} 17. Rc1 {[%clk 0:01:19.7]} 17... Nb4 {[%clk
0:01:29.1]} 18. Bb1 {[%clk 0:01:12.6]} 18... Bg4 {[%clk 0:01:27.4]} 19. Re1
{[%clk 0:01:10.3]} 19... Rae8 {[%clk 0:01:16.3]} 20. Rc3 {[%clk 0:01:02.4]}
20... Qf2 {[%clk 0:00:58.8]} 21. Nxc7 {[%clk 0:00:48.4]} 21... Rxe2 {[%clk
0:00:56.4]} 22. Qd2 {[%clk 0:00:49.3]} 22... Qxg2# {[%clk 0:00:54.1]} 0-1